[Event "*** Titled Tuesday Blitz"]
[Site "Chess.com"]
[Date "2021.04.20"]
[Round "2"]
[White "GameOverBro"]
[Black "suneebaker"]
[Result "1-0"]
[WhiteElo "2552"]
[BlackElo "2216"]
[TimeControl "180+1"]
[EndTime "10:17:04 PDT"]
[Termination "GameOverBro won by resignation"]

1. e4 {[%clk 0:03:00.9]} 1... e5 {[%clk 0:02:58.4]} 2. Nf3 {[%clk 0:03:00.9]}
2... Nc6 {[%clk 0:02:58.2]} 3. Bb5 {[%clk 0:02:59.9]} 3... a6 {[%clk 0:02:58]}
4. Ba4 {[%clk 0:02:59.4]} 4... Nf6 {[%clk 0:02:57.9]} 5. d4 {[%clk 0:02:59.2]}
5... exd4 {[%clk 0:02:49.9]} 6. O-O {[%clk 0:02:58.6]} 6... Nxe4 {[%clk
0:02:48.2]} 7. Re1 {[%clk 0:02:58.1]} 7... d5 {[%clk 0:02:48.1]} 8. Nxd4 {[%clk
0:02:58.2]} 8... Qf6 {[%clk 0:02:29.8]} 9. Bxc6+ {[%clk 0:02:50.6]} 9... bxc6
{[%clk 0:02:28.8]} 10. f3 {[%clk 0:02:51.2]} 10... Bc5 {[%clk 0:02:16]} 11. Be3
{[%clk 0:02:50.4]} 11... O-O {[%clk 0:02:05.3]} 12. fxe4 {[%clk 0:02:48.7]}
12... dxe4 {[%clk 0:02:05.2]} 13. Nc3 {[%clk 0:02:40.5]} 13... Qg6 {[%clk
0:02:03.1]} 14. Qd2 {[%clk 0:02:13.4]} 14... Rd8 {[%clk 0:01:53.9]} 15. Qf2
{[%clk 0:01:55.3]} 15... Bg4 {[%clk 0:01:42.2]} 16. Kh1 {[%clk 0:01:43.7]} 16...
Bd6 {[%clk 0:01:29.9]} 17. Nxc6 {[%clk 0:01:21.6]} 17... Re8 {[%clk 0:01:22.8]}
18. Bf4 {[%clk 0:01:14.4]} 18... Qf6 {[%clk 0:00:51.9]} 19. Bg3 {[%clk
0:00:52.2]} 19... Qxf2 {[%clk 0:00:35.4]} 20. Bxf2 {[%clk 0:00:50.6]} 20... f5
{[%clk 0:00:35.2]} 21. h3 {[%clk 0:00:35.7]} 21... Bh5 {[%clk 0:00:33.8]} 22. g4
{[%clk 0:00:35.3]} 22... fxg4 {[%clk 0:00:32.1]} 23. Nxe4 {[%clk 0:00:32.1]}
23... gxh3 {[%clk 0:00:27.3]} 24. Nxd6 {[%clk 0:00:30.3]} 24... cxd6 {[%clk
0:00:19.6]} 25. Kh2 {[%clk 0:00:26.7]} 25... Bf3 {[%clk 0:00:15.2]} 26. Nd4
{[%clk 0:00:25.8]} 26... Bg2 {[%clk 0:00:14.5]} 27. Rxe8+ {[%clk 0:00:23.7]}
27... Rxe8 {[%clk 0:00:14.3]} 28. Re1 {[%clk 0:00:23.8]} 28... Rb8 {[%clk
0:00:13.8]} 29. b3 {[%clk 0:00:24.1]} 29... Kf7 {[%clk 0:00:12.8]} 30. Bg3
{[%clk 0:00:21.1]} 30... Rb6 {[%clk 0:00:11.7]} 31. c4 {[%clk 0:00:20.9]} 31...
d5 {[%clk 0:00:09.6]} 32. c5 {[%clk 0:00:20.6]} 1-0

[Event "*** Titled Tuesday Blitz"]
[Site "Chess.com"]
[Date "2021.04.20"]
[Round "2"]
[White "ChessAdvanceUSA"]
[Black "Grieve72"]
[Result "1-0"]
[WhiteElo "2325"]
[BlackElo "2482"]
[TimeControl "180+1"]
[EndTime "10:17:04 PDT"]
[Termination "ChessAdvanceUSA won by resignation"]

1. Nc3 {[%clk 0:03:00.9]} 1... c5 {[%clk 0:02:58.7]} 2. e4 {[%clk 0:03:00.2]}
2... e6 {[%clk 0:02:58.9]} 3. f4 {[%clk 0:02:59.9]} 3... d5 {[%clk 0:02:58.3]}
4. Bb5+ {[%clk 0:02:57.1]} 4... Nc6 {[%clk 0:02:47.4]} 5. d3 {[%clk 0:02:51.8]}
5... dxe4 {[%clk 0:02:26]} 6. Bxc6+ {[%clk 0:02:50.2]} 6... bxc6 {[%clk
0:02:23.8]} 7. dxe4 {[%clk 0:02:50.7]} 7... Qxd1+ {[%clk 0:02:23.5]} 8. Nxd1
{[%clk 0:02:49.1]} 8... Ba6 {[%clk 0:02:04.2]} 9. Nf3 {[%clk 0:02:36.1]} 9...
O-O-O {[%clk 0:02:02.8]} 10. Nc3 {[%clk 0:02:31.6]} 10... Nf6 {[%clk 0:01:56.6]}
11. Be3 {[%clk 0:02:21.6]} 11... Be7 {[%clk 0:01:47.1]} 12. Rd1 {[%clk 0:01:58]}
12... Kb7 {[%clk 0:01:36.9]} 13. h3 {[%clk 0:01:51.2]} 13... Rxd1+ {[%clk
0:01:31.3]} 14. Kxd1 {[%clk 0:01:52.1]} 14... Rd8+ {[%clk 0:01:30.3]} 15. Kc1
{[%clk 0:01:47]} 15... Nh5 {[%clk 0:01:11.1]} 16. g4 {[%clk 0:01:05.3]} 16...
Ng3 {[%clk 0:01:08.5]} 17. Rg1 {[%clk 0:01:04.3]} 17... Ne2+ {[%clk 0:01:03.8]}
18. Nxe2 {[%clk 0:01:04.8]} 18... Bxe2 {[%clk 0:01:04.4]} 19. Nd2 {[%clk
0:01:00.3]} 19... Ka6 {[%clk 0:00:50.5]} 20. Rg2 {[%clk 0:00:56.8]} 20... Bb5
{[%clk 0:00:21.5]} 21. c4 {[%clk 0:00:51.6]} 21... Ba4 {[%clk 0:00:21.7]} 22. b3
{[%clk 0:00:50.1]} 22... Rd3 {[%clk 0:00:21.2]} 23. Re2 {[%clk 0:00:44.3]} 23...
Ka5 {[%clk 0:00:21.1]} 24. bxa4 {[%clk 0:00:43.1]} 24... Kxa4 {[%clk 0:00:21.6]}
25. Nb3 {[%clk 0:00:40.2]} 25... Kb4 {[%clk 0:00:21.7]} 26. Kc2 {[%clk
0:00:35.5]} 26... Rc3+ {[%clk 0:00:19.3]} 27. Kb2 {[%clk 0:00:35.1]} 27... Rxc4
{[%clk 0:00:19.7]} 28. Nd2 {[%clk 0:00:19.6]} 28... Rc3 {[%clk 0:00:17.8]} 29.
Nb1 {[%clk 0:00:13.8]} 29... Rc4 {[%clk 0:00:16.9]} 30. Bd2+ {[%clk 0:00:14]}
30... Kb5 {[%clk 0:00:14.8]} 31. Na3+ {[%clk 0:00:13.5]} 1-0

[Event "*** Titled Tuesday Blitz"]
[Site "Chess.com"]
[Date "2021.04.20"]
[Round "2"]
[White "rasmussvane"]
[Black "SilviusTiberius"]
[Result "1-0"]
[WhiteElo "2879"]
[BlackElo "2575"]
[TimeControl "180+1"]
[EndTime "10:17:06 PDT"]
[Termination "rasmussvane won by resignation"]

1. Nf3 {[%clk 0:03:00.9]} 1... d5 {[%clk 0:02:57]} 2. g3 {[%clk 0:03:01.3]} 2...
Nf6 {[%clk 0:02:56.6]} 3. Bg2 {[%clk 0:03:01.8]} 3... e6 {[%clk 0:02:57.2]} 4.
O-O {[%clk 0:03:02.4]} 4... Be7 {[%clk 0:02:57.7]} 5. c4 {[%clk 0:03:03]} 5...
O-O {[%clk 0:02:58.4]} 6. b3 {[%clk 0:03:03.6]} 6... b6 {[%clk 0:02:58]} 7. d4
{[%clk 0:03:03.8]} 7... Bb7 {[%clk 0:02:57]} 8. Nc3 {[%clk 0:03:04.4]} 8... Nbd7
{[%clk 0:02:57.2]} 9. Bb2 {[%clk 0:03:04.3]} 9... dxc4 {[%clk 0:02:53]} 10. bxc4
{[%clk 0:03:04.1]} 10... c5 {[%clk 0:02:53.5]} 11. d5 {[%clk 0:03:04.7]} 11...
exd5 {[%clk 0:02:51]} 12. cxd5 {[%clk 0:03:05.6]} 12... Ne8 {[%clk 0:02:41.9]}
13. e4 {[%clk 0:03:04.8]} 13... Bf6 {[%clk 0:02:35.3]} 14. Qe2 {[%clk
0:03:00.6]} 14... Nc7 {[%clk 0:02:25.1]} 15. Rfe1 {[%clk 0:02:47.9]} 15... Re8
{[%clk 0:02:23.7]} 16. Rad1 {[%clk 0:02:47.8]} 16... Bxc3 {[%clk 0:02:17.5]} 17.
Bxc3 {[%clk 0:02:45]} 17... Nxd5 {[%clk 0:02:03.2]} 18. Ba1 {[%clk 0:02:36.4]}
18... Qe7 {[%clk 0:01:41.2]} 19. Rxd5 {[%clk 0:01:49.2]} 19... Bxd5 {[%clk
0:01:41]} 20. Qb2 {[%clk 0:01:49.5]} 20... Qf6 {[%clk 0:01:39.9]} 21. exd5
{[%clk 0:01:45.6]} 21... Rxe1+ {[%clk 0:01:36.8]} 22. Nxe1 {[%clk 0:01:45.9]}
22... Re8 {[%clk 0:01:37.3]} 23. Kf1 {[%clk 0:01:41.7]} 23... Qg6 {[%clk
0:01:02.6]} 24. Qb5 {[%clk 0:01:14.8]} 24... Re7 {[%clk 0:01:02.5]} 25. h3
{[%clk 0:00:59.8]} 25... h5 {[%clk 0:00:54.3]} 26. Nd3 {[%clk 0:00:56.3]} 26...
c4 {[%clk 0:00:37.8]} 27. Nf4 {[%clk 0:00:25.6]} 27... Qc2 {[%clk 0:00:33.7]}
28. Kg1 {[%clk 0:00:24.2]} 28... Qc1+ {[%clk 0:00:31.2]} 29. Kh2 {[%clk
0:00:23.6]} 29... Qxa1 {[%clk 0:00:31.7]} 30. d6 {[%clk 0:00:24.2]} 30... Re8
{[%clk 0:00:13.8]} 31. Qxd7 {[%clk 0:00:24.3]} 31... Qe5 {[%clk 0:00:14.5]} 32.
Qc7 {[%clk 0:00:23.8]} 32... c3 {[%clk 0:00:07.3]} 33. d7 {[%clk 0:00:23.6]} 1-0

[Event "*** Titled Tuesday Blitz"]
[Site "Chess.com"]
[Date "2021.04.20"]
[Round "2"]
[White "Rsnr"]
[Black "zubridis"]
[Result "1-0"]
[WhiteElo "2785"]
[BlackElo "2522"]
[TimeControl "180+1"]
[EndTime "10:17:06 PDT"]
[Termination "Rsnr won by resignation"]

1. b3 {[%clk 0:03:00.9]} 1... e5 {[%clk 0:02:58.3]} 2. Bb2 {[%clk 0:03:01.8]}
2... Nc6 {[%clk 0:02:56.8]} 3. e3 {[%clk 0:03:01.7]} 3... Nf6 {[%clk 0:02:55.7]}
4. Bb5 {[%clk 0:03:01.3]} 4... Bd6 {[%clk 0:02:55.3]} 5. Na3 {[%clk 0:03:01.6]}
5... e4 {[%clk 0:02:54.6]} 6. Nc4 {[%clk 0:03:00.6]} 6... Be7 {[%clk 0:02:54.5]}
7. Bxc6 {[%clk 0:03:01.3]} 7... bxc6 {[%clk 0:02:53]} 8. Ne2 {[%clk 0:03:01.2]}
8... O-O {[%clk 0:02:52.6]} 9. O-O {[%clk 0:03:00.9]} 9... d5 {[%clk 0:02:51.6]}
10. Ne5 {[%clk 0:02:54.6]} 10... Qe8 {[%clk 0:02:51.6]} 11. f4 {[%clk
0:02:27.6]} 11... exf3 {[%clk 0:02:46.2]} 12. Nxf3 {[%clk 0:02:27.5]} 12... a5
{[%clk 0:02:42.5]} 13. a4 {[%clk 0:02:27.4]} 13... c5 {[%clk 0:02:34.9]} 14. Nf4
{[%clk 0:02:14.6]} 14... Bb7 {[%clk 0:02:29.6]} 15. Qe2 {[%clk 0:02:13.8]} 15...
Ne4 {[%clk 0:02:22.5]} 16. d3 {[%clk 0:02:12.4]} 16... Bf6 {[%clk 0:02:16.8]}
17. Bxf6 {[%clk 0:01:36.1]} 17... Nxf6 {[%clk 0:02:17.7]} 18. Rae1 {[%clk
0:01:36.2]} 18... Qe7 {[%clk 0:02:11.7]} 19. Qd2 {[%clk 0:01:36.6]} 19... Rfe8
{[%clk 0:02:08.8]} 20. Qc3 {[%clk 0:01:33.5]} 20... Qd6 {[%clk 0:02:08.7]} 21.
Nh4 {[%clk 0:01:11.8]} 21... Re5 {[%clk 0:01:44.4]} 22. d4 {[%clk 0:00:57.6]}
22... cxd4 {[%clk 0:01:40.9]} 23. exd4 {[%clk 0:00:58.5]} 23... Rxe1 {[%clk
0:01:39.3]} 24. Qxe1 {[%clk 0:00:59.4]} 24... Ne4 {[%clk 0:01:26.1]} 25. Nf5
{[%clk 0:00:56.9]} 25... Qb6 {[%clk 0:00:58.6]} 26. Qe3 {[%clk 0:00:47]} 26...
Kh8 {[%clk 0:00:32.4]} 27. Nh5 {[%clk 0:00:42.5]} 27... Rg8 {[%clk 0:00:31.9]}
28. Qf4 {[%clk 0:00:28.2]} 28... g6 {[%clk 0:00:23.9]} 29. Nh6 {[%clk
0:00:24.9]} 29... Qxd4+ {[%clk 0:00:22.8]} 30. Kh1 {[%clk 0:00:25.6]} 30... Rf8
{[%clk 0:00:16.2]} 31. Nxf7+ {[%clk 0:00:25.1]} 31... Rxf7 {[%clk 0:00:12.4]}
32. Qxf7 {[%clk 0:00:26]} 32... Nf2+ {[%clk 0:00:07.9]} 33. Rxf2 {[%clk
0:00:22.6]} 1-0

[Event "*** Titled Tuesday Blitz"]
[Site "Chess.com"]
[Date "2021.04.20"]
[Round "2"]
[White "Roedor"]
[Black "Qvalda"]
[Result "1-0"]
[WhiteElo "2278"]
[BlackElo "2443"]
[TimeControl "180+1"]
[EndTime "10:17:06 PDT"]
[Termination "Roedor won on time"]

1. d4 {[%clk 0:03:00.9]} 1... d6 {[%clk 0:02:59.7]} 2. c4 {[%clk 0:03:00.7]}
2... g6 {[%clk 0:02:55]} 3. Nf3 {[%clk 0:03:00.9]} 3... Bg7 {[%clk 0:02:52.1]}
4. g3 {[%clk 0:03:00.7]} 4... e5 {[%clk 0:02:48.5]} 5. Nc3 {[%clk 0:02:59.1]}
5... exd4 {[%clk 0:02:30.4]} 6. Nxd4 {[%clk 0:03:00]} 6... Nc6 {[%clk
0:02:30.8]} 7. Nxc6 {[%clk 0:02:58.3]} 7... bxc6 {[%clk 0:02:31.7]} 8. Bg2
{[%clk 0:02:58.8]} 8... Ne7 {[%clk 0:02:29.6]} 9. O-O {[%clk 0:02:58.4]} 9...
O-O {[%clk 0:02:29.3]} 10. Bg5 {[%clk 0:02:58.5]} 10... Rb8 {[%clk 0:02:27.6]}
11. Rb1 {[%clk 0:02:56.5]} 11... Be6 {[%clk 0:02:23.7]} 12. Qd3 {[%clk
0:02:22.7]} 12... c5 {[%clk 0:02:10.4]} 13. b3 {[%clk 0:02:16.7]} 13... Bf5
{[%clk 0:02:04.3]} 14. Be4 {[%clk 0:02:05.7]} 14... Bxe4 {[%clk 0:01:45.9]} 15.
Nxe4 {[%clk 0:02:04.1]} 15... h6 {[%clk 0:01:44.6]} 16. Bd2 {[%clk 0:02:03.7]}
16... Nf5 {[%clk 0:01:37.7]} 17. e3 {[%clk 0:02:00.4]} 17... Qe8 {[%clk
0:01:21.8]} 18. Bc3 {[%clk 0:01:56.9]} 18... Qc6 {[%clk 0:01:12.1]} 19. Bxg7
{[%clk 0:01:54.8]} 19... Kxg7 {[%clk 0:01:13]} 20. Nc3 {[%clk 0:01:51.5]} 20...
h5 {[%clk 0:01:05.9]} 21. h4 {[%clk 0:01:47.2]} 21... Qf3 {[%clk 0:01:01.7]} 22.
Qe4 {[%clk 0:01:23.4]} 22... Qxe4 {[%clk 0:00:56.9]} 23. Nxe4 {[%clk 0:01:24.3]}
23... a5 {[%clk 0:00:54.6]} 24. Nc3 {[%clk 0:01:23.9]} 24... Ne7 {[%clk
0:00:41.2]} 25. Rfd1 {[%clk 0:01:22.9]} 25... Nc6 {[%clk 0:00:27.9]} 26. Kg2
{[%clk 0:01:20.3]} 26... Ne5 {[%clk 0:00:24.4]} 27. Rd2 {[%clk 0:01:14.9]} 27...
a4 {[%clk 0:00:19.1]} 28. Rdd1 {[%clk 0:00:59.4]} 28... axb3 {[%clk 0:00:18.5]}
29. axb3 {[%clk 0:01:00.3]} 29... Rb7 {[%clk 0:00:14.9]} 30. Nb5 {[%clk
0:00:45.8]} 30... Ra8 {[%clk 0:00:11.1]} 31. Ra1 {[%clk 0:00:45]} 31... Rxa1
{[%clk 0:00:09.7]} 32. Rxa1 {[%clk 0:00:45.9]} 32... Kf6 {[%clk 0:00:02.7]} 33.
Ra6 {[%clk 0:00:44.4]} 33... Ke7 {[%clk 0:00:02.8]} 34. Ra8 {[%clk 0:00:44]}
34... Kd7 {[%clk 0:00:02.7]} 35. Rf8 {[%clk 0:00:43.8]} 35... Ke7 {[%clk
0:00:02.4]} 36. Ra8 {[%clk 0:00:44]} 36... c6 {[%clk 0:00:02.1]} 37. Nc3 {[%clk
0:00:38.8]} 37... Rxb3 {[%clk 0:00:02.2]} 38. Ne4 {[%clk 0:00:39.5]} 1-0

[Event "*** Titled Tuesday Blitz"]
[Site "Chess.com"]
[Date "2021.04.20"]
[Round "2"]
[White "Phenix2k"]
[Black "NateSolon"]
[Result "0-1"]
[WhiteElo "2261"]
[BlackElo "2641"]
[TimeControl "180+1"]
[EndTime "10:17:08 PDT"]
[Termination "NateSolon won by resignation"]

1. d4 {[%clk 0:03:00.9]} 1... Nf6 {[%clk 0:02:59.7]} 2. c4 {[%clk 0:03:00.7]}
2... e6 {[%clk 0:02:59.8]} 3. g3 {[%clk 0:03:00.5]} 3... d5 {[%clk 0:02:59.5]}
4. Bg2 {[%clk 0:03:00.5]} 4... dxc4 {[%clk 0:02:58.8]} 5. Nf3 {[%clk 0:03:00]}
5... a6 {[%clk 0:02:58.6]} 6. O-O {[%clk 0:02:55.2]} 6... Nc6 {[%clk 0:02:58.5]}
7. Bg5 {[%clk 0:02:45.7]} 7... Rb8 {[%clk 0:02:50.6]} 8. e3 {[%clk 0:02:42.8]}
8... Be7 {[%clk 0:02:46]} 9. Qe2 {[%clk 0:02:34.2]} 9... b5 {[%clk 0:02:45.2]}
10. b3 {[%clk 0:02:33.4]} 10... cxb3 {[%clk 0:02:43.8]} 11. axb3 {[%clk
0:02:34.2]} 11... Bb7 {[%clk 0:02:39.8]} 12. Rc1 {[%clk 0:02:20.3]} 12... O-O
{[%clk 0:02:26.6]} 13. Nbd2 {[%clk 0:02:16.1]} 13... Nd7 {[%clk 0:01:48.6]} 14.
Bxe7 {[%clk 0:02:10.2]} 14... Nxe7 {[%clk 0:01:44.9]} 15. Ne4 {[%clk 0:02:04.9]}
15... Bxe4 {[%clk 0:01:42.8]} 16. Rxa6 {[%clk 0:02:01.6]} 16... Qc8 {[%clk
0:01:36.1]} 17. Ra7 {[%clk 0:01:55.6]} 17... Rb7 {[%clk 0:01:31.5]} 18. Ra5
{[%clk 0:01:45.2]} 18... c6 {[%clk 0:01:14.9]} 19. Bh3 {[%clk 0:01:31.3]} 19...
Qb8 {[%clk 0:01:03.3]} 20. Ng5 {[%clk 0:01:29.2]} 20... Bf5 {[%clk 0:01:00.9]}
21. Bg2 {[%clk 0:01:23.1]} 21... h6 {[%clk 0:01:00.8]} 22. Ne4 {[%clk
0:01:15.3]} 22... Bxe4 {[%clk 0:00:46.6]} 23. Bxe4 {[%clk 0:01:16.2]} 23... Ra7
{[%clk 0:00:44.1]} 24. Rxa7 {[%clk 0:01:09.5]} 24... Qxa7 {[%clk 0:00:45]} 25.
Kg2 {[%clk 0:01:00.2]} 25... Qb6 {[%clk 0:00:43.6]} 26. b4 {[%clk 0:00:59.8]}
26... Nf6 {[%clk 0:00:42.7]} 27. Bf3 {[%clk 0:00:59]} 27... Nfd5 {[%clk
0:00:40.7]} 28. Qd2 {[%clk 0:00:51.6]} 28... Ra8 {[%clk 0:00:39.8]} 29. e4
{[%clk 0:00:51.8]} 29... Nf6 {[%clk 0:00:37.4]} 30. e5 {[%clk 0:00:50.5]} 30...
Nfd5 {[%clk 0:00:37.3]} 31. g4 {[%clk 0:00:47.1]} 31... Ra4 {[%clk 0:00:35.3]}
32. Rb1 {[%clk 0:00:47.4]} 32... Qa7 {[%clk 0:00:32.7]} 33. g5 {[%clk 0:00:45]}
33... hxg5 {[%clk 0:00:33.6]} 34. Bxd5 {[%clk 0:00:39.8]} 34... Nxd5 {[%clk
0:00:32.3]} 35. Qxg5 {[%clk 0:00:30.9]} 35... Qxd4 {[%clk 0:00:30.5]} 36. Rb3
{[%clk 0:00:27.8]} 36... Qe4+ {[%clk 0:00:26.1]} 37. Rf3 {[%clk 0:00:26.1]}
37... Ra3 {[%clk 0:00:18.1]} 0-1

[Event "*** Titled Tuesday Blitz"]
[Site "Chess.com"]
[Date "2021.04.20"]
[Round "2"]
[White "Flopezin"]
[Black "RobertoJBM"]
[Result "0-1"]
[WhiteElo "2338"]
[BlackElo "2727"]
[TimeControl "180+1"]
[EndTime "10:17:10 PDT"]
[Termination "RobertoJBM won by resignation"]

1. c4 {[%clk 0:03:00.9]} 1... c6 {[%clk 0:02:58.7]} 2. e4 {[%clk 0:03:00.6]}
2... d5 {[%clk 0:02:57.5]} 3. exd5 {[%clk 0:03:01.5]} 3... cxd5 {[%clk
0:02:58.4]} 4. d4 {[%clk 0:03:02.4]} 4... Nf6 {[%clk 0:02:57.8]} 5. Nc3 {[%clk
0:03:02.9]} 5... e6 {[%clk 0:02:57]} 6. Nf3 {[%clk 0:03:03.2]} 6... Be7 {[%clk
0:02:56.4]} 7. cxd5 {[%clk 0:03:02.9]} 7... Nxd5 {[%clk 0:02:56.2]} 8. Bd3
{[%clk 0:03:03.3]} 8... O-O {[%clk 0:02:55.7]} 9. O-O {[%clk 0:03:03.8]} 9...
Nc6 {[%clk 0:02:54.9]} 10. Re1 {[%clk 0:03:04.3]} 10... Nf6 {[%clk 0:02:54.5]}
11. a3 {[%clk 0:03:03.3]} 11... b6 {[%clk 0:02:54.4]} 12. Bc2 {[%clk 0:03:02.9]}
12... Ba6 {[%clk 0:02:54.3]} 13. Bf4 {[%clk 0:02:53.7]} 13... Rc8 {[%clk
0:02:53.4]} 14. Rc1 {[%clk 0:02:52.7]} 14... Na5 {[%clk 0:02:52.2]} 15. Ne5
{[%clk 0:02:21.1]} 15... Nc4 {[%clk 0:02:39.2]} 16. Nxc4 {[%clk 0:02:19.8]}
16... Bxc4 {[%clk 0:02:38.6]} 17. Qd2 {[%clk 0:01:58.6]} 17... Nd5 {[%clk
0:02:36.1]} 18. Nxd5 {[%clk 0:01:58]} 18... Bxd5 {[%clk 0:02:29.9]} 19. Qd3
{[%clk 0:01:57.9]} 19... g6 {[%clk 0:02:28.8]} 20. Be5 {[%clk 0:01:54.8]} 20...
Qd7 {[%clk 0:02:27.9]} 21. f3 {[%clk 0:01:48.7]} 21... Rfd8 {[%clk 0:02:27]} 22.
Qe3 {[%clk 0:01:47.1]} 22... Bf8 {[%clk 0:02:13.8]} 23. Bf6 {[%clk 0:01:45.2]}
23... Be7 {[%clk 0:02:07]} 24. Be5 {[%clk 0:01:45.5]} 24... b5 {[%clk
0:02:03.6]} 25. Qf4 {[%clk 0:01:25.2]} 25... Bd6 {[%clk 0:01:57.2]} 26. h4
{[%clk 0:01:22.9]} 26... Bxe5 {[%clk 0:01:56.2]} 27. dxe5 {[%clk 0:01:22.3]}
27... Bb7 {[%clk 0:01:50.5]} 28. h5 {[%clk 0:01:16]} 28... Qd4+ {[%clk
0:01:47.8]} 29. Qxd4 {[%clk 0:01:12.8]} 29... Rxd4 {[%clk 0:01:48.7]} 30. hxg6
{[%clk 0:01:06.9]} 30... hxg6 {[%clk 0:01:49.6]} 31. Kf2 {[%clk 0:01:07.3]}
31... Rdc4 {[%clk 0:01:41.7]} 32. Re2 {[%clk 0:01:06.9]} 32... a5 {[%clk
0:01:40.9]} 33. Ke1 {[%clk 0:01:02.1]} 33... b4 {[%clk 0:01:40.4]} 34. axb4
{[%clk 0:01:00.9]} 34... axb4 {[%clk 0:01:41.3]} 35. b3 {[%clk 0:01:01.8]} 35...
Rc3 {[%clk 0:01:41.3]} 36. Kd1 {[%clk 0:01:00]} 36... Bd5 {[%clk 0:01:37.4]} 37.
Rb1 {[%clk 0:00:54.2]} 37... g5 {[%clk 0:01:35.5]} 38. Rb2 {[%clk 0:00:49.9]}
38... R8c5 {[%clk 0:01:33.3]} 39. Kd2 {[%clk 0:00:49.7]} 39... g4 {[%clk
0:01:30.5]} 40. Re3 {[%clk 0:00:49.2]} 40... gxf3 {[%clk 0:01:26.5]} 41. gxf3
{[%clk 0:00:50]} 41... Bxf3 {[%clk 0:01:26.4]} 42. Bd3 {[%clk 0:00:47.6]} 42...
Bd5 {[%clk 0:01:22.3]} 43. Ra2 {[%clk 0:00:40.7]} 43... Bxb3 {[%clk 0:01:20.6]}
44. Ra8+ {[%clk 0:00:35]} 44... Rc8 {[%clk 0:01:19.2]} 45. Ra7 {[%clk
0:00:35.2]} 45... R3c7 {[%clk 0:01:16.7]} 46. Rg3+ {[%clk 0:00:34.9]} 46... Kf8
{[%clk 0:01:16.6]} 47. Ra1 {[%clk 0:00:32]} 47... Bc2 {[%clk 0:01:08]} 48. Bb5
{[%clk 0:00:26.9]} 48... b3 {[%clk 0:01:01.6]} 49. Rf1 {[%clk 0:00:21.2]} 49...
b2 {[%clk 0:00:57.6]} 0-1

[Event "*** Titled Tuesday Blitz"]
[Site "Chess.com"]
[Date "2021.04.20"]
[Round "2"]
[White "CrushingKings"]
[Black "ckgchess"]
[Result "1-0"]
[WhiteElo "2497"]
[BlackElo "2695"]
[TimeControl "180+1"]
[EndTime "10:17:12 PDT"]
[Termination "CrushingKings won by resignation"]

1. e4 {[%clk 0:03:00.9]} 1... c5 {[%clk 0:03:00]} 2. d4 {[%clk 0:03:00.8]} 2...
cxd4 {[%clk 0:03:00.1]} 3. c3 {[%clk 0:03:01.7]} 3... Nf6 {[%clk 0:03:00.6]} 4.
e5 {[%clk 0:03:01.5]} 4... Nd5 {[%clk 0:03:01.1]} 5. Nf3 {[%clk 0:03:02.4]} 5...
Nc6 {[%clk 0:03:00.9]} 6. Bc4 {[%clk 0:03:02.8]} 6... Nb6 {[%clk 0:02:58.9]} 7.
Bb3 {[%clk 0:03:03.3]} 7... d5 {[%clk 0:02:58.8]} 8. exd6 {[%clk 0:03:04.2]}
8... Qxd6 {[%clk 0:02:57.7]} 9. O-O {[%clk 0:03:04.7]} 9... Bf5 {[%clk
0:02:46.6]} 10. cxd4 {[%clk 0:03:04.3]} 10... e6 {[%clk 0:02:46.8]} 11. Nc3
{[%clk 0:03:05]} 11... Be7 {[%clk 0:02:45.1]} 12. Qe2 {[%clk 0:03:03.9]} 12...
O-O {[%clk 0:02:36.2]} 13. Rd1 {[%clk 0:02:52.1]} 13... Bg4 {[%clk 0:02:18.7]}
14. d5 {[%clk 0:02:46.5]} 14... exd5 {[%clk 0:02:08.9]} 15. Nxd5 {[%clk
0:02:44.7]} 15... Nxd5 {[%clk 0:02:08.3]} 16. Bxd5 {[%clk 0:02:31.3]} 16... Qf6
{[%clk 0:01:51.8]} 17. h3 {[%clk 0:02:13.8]} 17... Bxf3 {[%clk 0:01:28.5]} 18.
Qxf3 {[%clk 0:02:14.1]} 18... Qxf3 {[%clk 0:01:24.6]} 19. Bxf3 {[%clk 0:02:15]}
19... Bf6 {[%clk 0:01:25]} 20. Be3 {[%clk 0:02:10.6]} 20... Ne5 {[%clk
0:01:14.6]} 21. Bxb7 {[%clk 0:02:01.5]} 21... Rab8 {[%clk 0:01:14.7]} 22. Bd5
{[%clk 0:01:54.7]} 22... Rxb2 {[%clk 0:01:06.7]} 23. Bxa7 {[%clk 0:01:44.8]}
23... Rd8 {[%clk 0:00:54]} 24. Bd4 {[%clk 0:01:39.6]} 24... Rbb8 {[%clk
0:00:36.5]} 25. Ba7 {[%clk 0:00:57.2]} 25... Rb5 {[%clk 0:00:35.9]} 26. Be4
{[%clk 0:00:49.2]} 26... Re8 {[%clk 0:00:35.1]} 27. a4 {[%clk 0:00:35.8]} 27...
Rb4 {[%clk 0:00:35.1]} 28. Bd5 {[%clk 0:00:29]} 28... Nd3 {[%clk 0:00:29.6]} 29.
Ra2 {[%clk 0:00:29.3]} 29... Nf4 {[%clk 0:00:28.3]} 30. Bc6 {[%clk 0:00:27.2]}
30... Rc8 {[%clk 0:00:26.3]} 31. Bf3 {[%clk 0:00:25.7]} 31... g6 {[%clk
0:00:21.8]} 32. Be3 {[%clk 0:00:25.8]} 32... Ne6 {[%clk 0:00:19.5]} 33. a5
{[%clk 0:00:25.6]} 33... Bd4 {[%clk 0:00:20]} 34. a6 {[%clk 0:00:22.9]} 34...
Bxe3 {[%clk 0:00:10.2]} 35. fxe3 {[%clk 0:00:23.8]} 35... Rbb8 {[%clk
0:00:10.9]} 36. a7 {[%clk 0:00:24]} 36... Ra8 {[%clk 0:00:11.8]} 37. Bxa8 {[%clk
0:00:23.5]} 37... Rxa8 {[%clk 0:00:12.7]} 38. Rb1 {[%clk 0:00:23.6]} 1-0